bitfinex-derivatives/quotes_BTCF0:USTF0_20241214
["timestamp","ask_amount","ask_price","bid_price","bid_amount"]
[1734219012810,0.1,101400.0,101390.0,1.5727746]
[1734219013005,0.1,101400.0,101390.0,1.5579746]
[1734219013308,0.1,101400.0,101390.0,1.5727746]
[1734219013513,0.1,101400.0,101390.0,1.5579746]
[1734219013710,0.1,101400.0,101390.0,1.5727746]
[1734219014210,0.1,101400.0,101390.0,1.5579746]
[1734219014406,0.1,101400.0,101390.0,1.5727746]
[1734219014713,0.1,101400.0,101390.0,1.5579746]
[1734219016810,0.1,101400.0,101390.0,1.46645337]
[1734219017406,0.1,101400.0,101390.0,1.5278746]
[1734219018112,0.1,101400.0,101390.0,1.52637224]
[1734219020311,0.1,101400.0,101390.0,1.40205101]
[1734219020512,0.1322,101400.0,101390.0,1.40205101]
[1734219021215,0.1322,101400.0,101390.0,1.38271131]
[1734219021614,0.1956,101400.0,101390.0,1.38271131]
[1734219022113,0.1956,101400.0,101390.0,1.0286504]
[1734219022315,0.1956,101400.0,101390.0,1.38271131]
[1734219022515,0.1956,101400.0,101390.0,0.66687963]
[1734219024709,0.1956,101400.0,101390.0,0.66638081]
[1734219026305,0.1322,101400.0,101390.0,0.66638081]
[1734219026510,0.1322,101400.0,101390.0,0.46628899]
[1734219026706,0.1322,101400.0,101390.0,0.72762719]
[1734219027321,0.1322,101400.0,101390.0,1.4424881]
[1734219028013,0.1322,101400.0,101390.0,1.14836257]
[1734219028613,0.1322,101400.0,101390.0,1.08177158]
[1734219028915,0.25039714,101400.0,101390.0,0.72771067]
[1734219030913,0.25039714,101400.0,101390.0,0.72772479]
[1734219031315,0.26653749,101410.0,101390.0,1.14837669]
[1734219031621,0.11875028,101410.0,101400.0,0.82722958]
[1734219031823,0.11825028,101410.0,101400.0,1.0885819]
[1734219032211,0.54098721,101420.0,101410.0,0.049312]
[1734219032416,0.54098721,101420.0,101410.0,0.28467682]
[1734219032718,0.54098721,101420.0,101410.0,0.34609805]
[1734219033309,0.50858721,101420.0,101410.0,0.34609805]
[1734219033510,0.50858721,101420.0,101410.0,0.64036817]
[1734219033717,0.54098721,101420.0,101410.0,0.9069748]
[1734219034926,0.54148721,101420.0,101410.0,0.91706786]
[1734219035317,0.54148721,101420.0,101410.0,0.65046123]
[1734219036219,0.3937,101420.0,101410.0,0.65046123]
[1734219036420,0.3613,101420.0,101410.0,0.71188246]
[1734219036624,0.0005,101420.0,101410.0,1.13660949]
[1734219036819,0.0005,101420.0,101410.0,1.16740949]
[1734219037019,0.0005,101420.0,101410.0,1.5214704]
[1734219037226,0.0005,101420.0,101410.0,1.16740949]
[1734219038615,0.0005,101420.0,101410.0,1.22720028]
[1734219038821,0.0005,101420.0,101410.0,1.53872224]
[1734219039431,0.0005,101420.0,101410.0,1.22720028]
[1734219039631,0.32508162,101450.0,101430.0,0.049302]
[1734219039839,0.14778721,101450.0,101440.0,0.28690023]
[1734219040128,0.73321159,101460.0,101440.0,0.53393379]
[1734219040334,0.54623721,101460.0,101450.0,0.11071323]
[1734219040518,0.59552421,101460.0,101450.0,0.11071323]
[1734219040926,0.59552421,101460.0,101450.0,0.06142123]
[1734219041435,0.447737,101460.0,101450.0,0.06142123]
[1734219042632,0.39845,101460.0,101450.0,0.11071323]
[1734219042824,0.00585,101460.0,101450.0,0.17213446]
[1734219043025,0.00585,101460.0,101450.0,0.23613446]
[1734219043219,0.00585,101460.0,101450.0,0.17471323]
[1734219043437,0.00585,101460.0,101450.0,0.23613446]
[1734219044334,0.00585,101460.0,101450.0,0.17471323]
[1734219044533,0.00585,101460.0,101450.0,0.11071323]
[1734219044838,0.36665,101460.0,101450.0,0.11071323]
[1734219046834,0.415937,101460.0,101450.0,0.11071323]
[1734219047628,0.36665,101460.0,101450.0,0.11071323]
[1734219047831,0.36665,101460.0,101450.0,0.17213446]
[1734219048028,0.36665,101460.0,101450.0,0.20253446]
[1734219048229,0.36665,101460.0,101450.0,0.14111323]
[1734219049336,0.36665,101460.0,101450.0,0.11071323]
[1734219049538,0.90328046,101460.0,101420.0,0.225488]
[1734219049729,0.3608,101430.0,101420.0,0.11072723]
[1734219050029,0.3608,101430.0,101420.0,0.17214846]
[1734219050230,0.3913,101430.0,101420.0,0.17214846]
[1734219051028,0.410097,101440.0,101430.0,0.049302]
[1734219051238,0.410097,101440.0,101430.0,0.14261661]
[1734219051639,0.410097,101440.0,101430.0,0.049302]
[1734219053930,0.3608,101440.0,101430.0,0.14261661]
[1734219054136,0.440593,101450.0,101440.0,0.049297]
[1734219054331,0.440593,101450.0,101440.0,0.14261161]
[1734219054537,0.440593,101450.0,101440.0,0.049297]
[1734219055639,0.440593,101450.0,101440.0,0.14261161]
[1734219055841,0.3913,101450.0,101440.0,0.14261161]
[1734219056143,0.3913,101450.0,101440.0,0.049297]
[1734219057038,0.3913,101450.0,101440.0,0.14261161]
[1734219057039,0.3608,101450.0,101440.0,0.14261161]
[1734219057241,0.3613,101460.0,101450.0,0.049292]
[1734219061140,0.3613,101460.0,101450.0,0.14260661]
[1734219061345,0.33503289,101490.0,101460.0,0.049287]
[1734219061639,0.29568,101490.0,101480.0,0.410078]
[1734219062445,0.24258261,101500.0,101480.0,0.3608]
[1734219062446,0.28202261,101500.0,101480.0,0.3608]
[1734219062648,0.38899461,101490.0,101470.0,0.80429133]
[1734219062854,0.38899461,101490.0,101470.0,0.569382]
[1734219062855,0.29568,101480.0,101470.0,0.569382]
[1734219063349,0.74979461,101480.0,101460.0,0.41109133]
[1734219063550,0.374963,101470.0,101450.0,0.79824069]
[1734219063748,0.079283,101470.0,101450.0,0.56333136]
[1734219063954,0.0005,101460.0,101450.0,0.56333136]
[1734219064141,0.29618,101460.0,101450.0,0.53846054]
[1734219064346,0.345467,101460.0,101450.0,0.53846054]
[1734219064847,0.344967,101460.0,101450.0,0.53846054]
[1734219065045,0.049287,101460.0,101450.0,0.53846054]
[1734219065242,0.049287,101460.0,101450.0,0.09479315]
[1734219065447,0.049283,101470.0,101450.0,0.79537183]
[1734219065643,0.344963,101470.0,101450.0,0.79537183]
[1734219066149,0.049287,101460.0,101450.0,0.74608083]
[1734219066348,0.049287,101460.0,101450.0,0.98099016]
[1734219067344,0.049284,101470.0,101450.0,1.33027916]
[1734219067547,0.049284,101470.0,101460.0,0.74378361]
[1734219067751,0.049284,101470.0,101460.0,0.88537833]
[1734219067952,0.049284,101470.0,101460.0,0.99829653]
[1734219068145,0.344964,101470.0,101460.0,0.80479133]
[1734219068452,0.344964,101470.0,101460.0,0.569882]
[1734219068648,0.344964,101470.0,101460.0,0.536982]
[1734219068952,0.049287,101460.0,101450.0,0.82265987]
[1734219069148,0.344967,101460.0,101450.0,0.77336987]
[1734219069654,0.049285,101470.0,101450.0,0.84364195]
[1734219069866,0.735865,101470.0,101460.0,0.17568442]
[1734219070059,0.375065,101470.0,101460.0,0.17568442]
[1734219070358,0.414505,101470.0,101460.0,0.17568442]
[1734219070855,0.414505,101470.0,101450.0,0.85276329]
[1734219071043,0.375065,101470.0,101450.0,0.85276329]
[1734219071450,0.049287,101460.0,101450.0,0.85276329]
[1734219071650,0.049287,101460.0,101450.0,0.86756329]
[1734219071943,0.049287,101460.0,101450.0,0.86756429]
[1734219073448,0.079384,101470.0,101450.0,0.86756429]
[1734219073646,0.41008,101480.0,101460.0,0.50340061]
[1734219073851,0.70576,101480.0,101460.0,0.70968503]
[1734219074156,0.70576,101480.0,101460.0,0.82369047]
[1734219074344,0.344963,101470.0,101460.0,0.28968986]
[1734219074549,0.344963,101470.0,101450.0,0.86756429]
[1734219074550,0.376863,101470.0,101450.0,0.86756429]
[1734219074757,0.408763,101470.0,101450.0,0.86756429]
[1734219076559,0.408763,101470.0,101450.0,0.88727451]
[1734219076750,0.0319,101470.0,101460.0,0.58577142]
[1734219077252,0.0319,101470.0,101460.0,0.67908603]
[1734219078158,0.0319,101470.0,101460.0,0.91399536]
[1734219078361,0.0319,101470.0,101460.0,0.67908603]
[1734219079945,0.441975,101490.0,101470.0,0.049279]
[1734219080150,0.29568,101480.0,101470.0,0.53549361]
[1734219080346,0.29568,101480.0,101470.0,0.71117803]
[1734219081950,0.29618,101480.0,101470.0,0.71117803]
[1734219082953,0.62276221,101490.0,101470.0,0.71117803]
[1734219083256,0.91844221,101490.0,101470.0,0.74337803]
[1734219083951,0.0005,101480.0,101470.0,0.74337803]
[1734219084864,0.62276221,101490.0,101470.0,0.74337803]
[1734219085056,0.91844221,101490.0,101470.0,0.74337803]
[1734219085861,0.0005,101480.0,101470.0,0.74337803]
[1734219086253,0.0005,101480.0,101470.0,0.97828736]
[1734219086451,0.08898179,101480.0,101470.0,0.97828736]
[1734219086855,0.08848179,101480.0,101470.0,0.97828736]
[1734219087065,0.08848179,101480.0,101470.0,0.90694458]
[1734219087958,0.08898179,101480.0,101470.0,0.90694458]
[1734219088852,0.08848179,101480.0,101470.0,0.90694458]
[1734219089252,0.38416179,101480.0,101470.0,0.64498833]
[1734219089451,0.43343979,101480.0,101470.0,0.64498833]
[1734219089656,0.43343979,101480.0,101470.0,0.82086325]
[1734219089862,0.43393979,101480.0,101470.0,0.82086325]
[1734219090167,0.38466179,101480.0,101470.0,0.73830294]
[1734219090465,0.38466179,101480.0,101470.0,0.80380294]
[1734219091357,0.50269466,101480.0,101470.0,0.80380294]
[1734219091760,0.50269466,101480.0,101470.0,0.81860294]
[1734219093371,0.54213466,101480.0,101470.0,0.64498833]
[1734219094362,0.45365287,101480.0,101470.0,0.64498833]
[1734219094867,0.45315287,101480.0,101470.0,0.64498833]
[1734219095766,0.45315287,101480.0,101470.0,0.66465959]
[1734219096561,0.45315287,101480.0,101470.0,0.64498833]
[1734219096760,0.88649087,101480.0,101470.0,0.23490933]
[1734219097158,0.91624521,101480.0,101470.0,0.41094418]
[1734219097360,0.91624521,101480.0,101470.0,0.64499233]
[1734219097361,0.52574898,101480.0,101470.0,0.64499233]
[1734219097664,0.56518898,101480.0,101470.0,0.28419233]
[1734219099368,0.45321098,101480.0,101470.0,0.37750694]
[1734219099574,0.45321098,101480.0,101470.0,0.55136034]
[1734219099781,0.41377098,101480.0,101470.0,0.55136034]
[1734219102565,0.11809098,101480.0,101470.0,0.84495941]
[1734219102770,0.11809098,101480.0,101470.0,1.47234444]
[1734219103371,0.11809098,101480.0,101470.0,1.23743511]
[1734219105675,0.2067149,101480.0,101470.0,1.23743511]
[1734219109492,0.5023949,101480.0,101470.0,1.23743511]
[1734219110281,0.38430392,101480.0,101470.0,1.58979911]
[1734219110485,0.5023949,101480.0,101470.0,1.23743511]
[1734219111194,0.38430392,101480.0,101470.0,1.23743511]
[1734219111586,0.38430392,101480.0,101470.0,1.25223511]
[1734219111782,0.5023949,101480.0,101470.0,1.07838171]
[1734219111994,0.5023949,101480.0,101470.0,0.81179668]
[1734219112185,0.5023949,101480.0,101470.0,1.07890015]
[1734219112380,0.5023949,101480.0,101470.0,1.06410015]
[1734219112587,0.5418349,101480.0,101470.0,1.07890015]
[1734219113899,0.45321098,101480.0,101470.0,1.18330186]
[1734219114095,0.50237865,101480.0,101470.0,1.18330186]
[1734219115299,0.50237865,101480.0,101470.0,1.1511717]
[1734219115594,0.50237865,101480.0,101470.0,1.10958535]
[1734219115785,0.15753098,101480.0,101470.0,1.00518364]
[1734219115987,0.54181996,101480.0,101470.0,0.97078554]
[1734219116191,0.60571996,101480.0,101470.0,1.20573083]
[1734219116403,0.60571996,101480.0,101470.0,1.26691528]
[1734219117093,0.68664264,101480.0,101470.0,0.70454327]
[1734219117287,0.97862966,101480.0,101470.0,0.41094335]
[1734219118085,0.85354521,101480.0,101470.0,0.3452803]
[1734219118287,0.91764521,101480.0,101470.0,0.3452803]
[1734219118692,0.95708521,101480.0,101470.0,0.3452803]
[1734219118893,0.95708521,101480.0,101470.0,0.28409585]
[1734219120294,0.91764521,101480.0,101470.0,0.28409585]
[1734219120696,0.95708521,101480.0,101470.0,0.28409585]
[1734219121496,0.59628521,101480.0,101470.0,0.28409585]
[1734219121699,0.92743429,101480.0,101470.0,0.28409585]
[1734219121997,0.56662947,101480.0,101470.0,0.28409585]
[1734219125192,0.45325147,101480.0,101470.0,0.73815145]
[1734219125392,0.41381147,101480.0,101470.0,1.03175052]
[1734219125698,0.41381147,101480.0,101470.0,1.06496896]
[1734219127603,0.41381147,101480.0,101470.0,1.06462944]
[1734219128104,0.11813147,101480.0,101470.0,1.06462944]
[1734219128306,0.41381147,101480.0,101470.0,1.06462944]
[1734219129399,0.50240829,101480.0,101470.0,1.16979632]
[1734219129902,0.50240829,101480.0,101470.0,1.52216032]
[1734219130405,0.50240829,101480.0,101470.0,1.16979632]
[1734219131596,0.50240829,101480.0,101470.0,1.25446855]
[1734219131906,0.50240829,101480.0,101470.0,1.53707553]
[1734219132293,0.38427682,101480.0,101470.0,1.52227553]
[1734219132498,0.50240829,101480.0,101470.0,1.53707553]
[1734219133399,0.38427682,101480.0,101470.0,1.18471153]
[1734219133604,0.50240829,101480.0,101470.0,1.53707553]
[1734219134200,0.38427682,101480.0,101470.0,1.18471153]
[1734219134501,0.38427682,101480.0,101470.0,1.53707553]
[1734219134697,0.50240829,101480.0,101470.0,1.53707553]
[1734219134898,0.50240829,101480.0,101470.0,1.43190865]
[1734219135209,0.42371682,101480.0,101470.0,1.43190865]
[1734219135908,0.42371682,101480.0,101470.0,1.4323269]
[1734219136301,0.54184829,101480.0,101470.0,1.0799629]
[1734219136505,0.24616829,101480.0,101470.0,1.0799629]
[1734219136697,0.50240678,101480.0,101470.0,1.18869629]
[1734219138301,0.50240678,101480.0,101470.0,1.0799629]
[1734219138505,0.54184678,101480.0,101470.0,1.0799629]
[1734219138700,0.42371531,101480.0,101470.0,1.4323269]
[1734219139609,0.12803531,101480.0,101470.0,1.4323269]
[1734219139801,0.50240678,101480.0,101470.0,1.18251028]
[1734219140411,0.50240678,101480.0,101470.0,1.2024244]
[1734219141302,0.50240678,101480.0,101470.0,1.17035113]
[1734219141502,0.50240678,101480.0,101470.0,1.06780375]
[1734219141503,0.20672678,101480.0,101470.0,1.06780375]
[1734219141808,0.54184678,101480.0,101470.0,1.06780375]
[1734219143810,0.54184678,101480.0,101470.0,1.17236971]
[1734219143811,0.50240678,101480.0,101470.0,1.17236971]
[1734219144914,0.50240678,101480.0,101470.0,1.17323417]
[1734219146314,0.38427531,101480.0,101470.0,1.17323417]
[1734219147019,0.50240678,101480.0,101470.0,1.17323417]
[1734219148223,0.41381147,101480.0,101470.0,1.15332005]
[1734219149519,0.50243678,101480.0,101470.0,1.15332005]
[1734219150116,0.38430528,101480.0,101470.0,1.27326731]
[1734219150619,0.38430528,101480.0,101470.0,1.21208498]
[1734219150824,0.38430528,101480.0,101470.0,1.27326731]
[1734219153114,0.38430528,101480.0,101470.0,1.27286389]
[1734219153612,0.38430528,101480.0,101470.0,1.21168156]
[1734219153820,0.38430528,101480.0,101470.0,1.27291245]
[1734219154221,0.38430528,101480.0,101470.0,1.21173012]
[1734219154715,0.42374528,101480.0,101470.0,1.09236416]
[1734219155122,0.42374528,101480.0,101470.0,1.11255955]
[1734219155816,0.42374528,101480.0,101470.0,1.43347207]
[1734219156023,0.54187675,101480.0,101470.0,1.43348246]
[1734219160427,0.54187675,101480.0,101470.0,1.11255955]
[1734219160624,0.54187675,101480.0,101470.0,1.43407154]
[1734219160828,0.60305908,101480.0,101470.0,0.96405133]
[1734219161022,1.09395901,101480.0,101470.0,0.79739358]
[1734219161322,0.91464521,101480.0,101470.0,0.52865875]
[1734219161523,0.97582754,101480.0,101470.0,0.23498925]
[1734219161725,1.21430428,101480.0,101470.0,0.37176615]
[1734219162029,1.06651707,101480.0,101470.0,0.1762169]
[1734219162628,0.049283,101470.0,101460.0,0.23611467]
[1734219162933,1.06486663,101470.0,101460.0,0.23561467]
[1734219164030,1.06486663,101470.0,101460.0,0.23611467]
[1734219164631,0.91718813,101470.0,101460.0,0.23611467]
[1734219165022,0.91718813,101470.0,101460.0,0.23561467]
[1734219165627,1.00572038,101470.0,101460.0,0.23561467]
[1734219166030,1.00572038,101470.0,101460.0,0.23611467]
[1734219166230,0.91718813,101470.0,101460.0,0.23611467]
[1734219166431,1.00570293,101470.0,101460.0,0.23611467]
[1734219166832,1.30570293,101470.0,101460.0,0.1767169]
[1734219167029,1.30570293,101470.0,101450.0,0.049291]
[1734219167030,0.049287,101460.0,101450.0,0.049291]
[1734219167235,0.74162709,101460.0,101450.0,0.049291]
[1734219167922,0.049292,101450.0,101440.0,0.05923302]
[1734219168127,0.59106408,101450.0,101440.0,0.05923302]
[1734219168336,0.70920688,101450.0,101440.0,0.12041535]
[1734219168634,0.48058975,101450.0,101440.0,0.12041535]
[1734219170426,0.11978975,101450.0,101440.0,0.12041535]
[1734219170628,0.0313,101450.0,101440.0,0.12041535]
[1734219170829,0.0313,101450.0,101440.0,0.18159768]
[1734219171034,0.0313,101450.0,101440.0,0.12041535]
[1734219172629,0.0313,101450.0,101440.0,0.18159768]
[1734219172826,0.4245,101460.0,101450.0,0.049292]
[1734219173027,0.4572,101460.0,101450.0,0.11097433]
[1734219179240,0.3935,101460.0,101450.0,0.11097433]
[1734219179539,0.44928975,101470.0,101460.0,0.049287]
[1734219179741,0.3608,101470.0,101460.0,0.11046933]
[1734219181231,0.3608,101470.0,101460.0,0.17216933]
[1734219185344,0.3608,101470.0,101460.0,0.18184864]
[1734219186238,0.44928975,101470.0,101460.0,0.18184864]
[1734219190643,0.56743255,101470.0,101460.0,0.18184864]
[1734219191440,0.56743255,101470.0,101460.0,0.12014864]
[1734219191649,0.67789788,101470.0,101460.0,0.049287]
[1734219191939,1.06999788,101470.0,101460.0,0.049287]
[1734219192148,1.07049788,101470.0,101460.0,0.049287]
[1734219192332,0.98200813,101470.0,101460.0,0.049287]
[1734219192533,0.049287,101460.0,101450.0,0.05900587]
[1734219192740,0.74314496,101460.0,101450.0,0.05900587]
[1734219193333,0.74314496,101460.0,101450.0,0.049291]
[1734219194434,0.71579446,101460.0,101450.0,0.049291]
[1734219194748,0.59765166,101460.0,101450.0,0.049291]
[1734219195341,0.53646933,101460.0,101450.0,0.049291]
[1734219201447,0.80219317,101460.0,101450.0,0.049291]
[1734219204645,0.65451467,101460.0,101450.0,0.049291]
[1734219205850,0.715697,101460.0,101450.0,0.049291]
[1734219206038,0.715697,101460.0,101430.0,0.43435083]
[1734219206239,0.42198233,101440.0,101430.0,0.60362756]
[1734219206444,0.51050242,101440.0,101430.0,0.3429685]
[1734219206655,0.62419942,101440.0,101430.0,0.049299]
[1734219206841,0.80342709,101440.0,101430.0,0.049299]
[1734219207853,0.049304,101430.0,101420.0,0.049305]
[1734219208155,0.5917896,101430.0,101420.0,0.049305]
[1734219209558,0.50328633,101430.0,101420.0,0.049305]
[1734219210353,0.59172696,101430.0,101420.0,0.049305]
[1734219210752,0.3608,101430.0,101420.0,0.11048733]
[1734219211146,0.3608,101430.0,101420.0,0.049305]
[1734219211147,0.42198233,101430.0,101420.0,0.049305]
[1734219211351,0.47128433,101430.0,101420.0,0.049305]
[1734219211559,0.50308433,101430.0,101420.0,0.049305]
[1734219212055,0.3608,101430.0,101420.0,0.11048733]
[1734219213150,0.42198233,101430.0,101420.0,0.049305]
[1734219213352,0.3608,101430.0,101420.0,0.049305]
[1734219214860,0.3608,101430.0,101420.0,0.11048733]
[1734219215062,0.3608,101430.0,101420.0,0.11098733]
[1734219216061,0.3608,101430.0,101420.0,0.17318733]
[1734219216258,0.62412196,101440.0,101420.0,0.12388233]
[1734219216566,0.62412196,101440.0,101430.0,0.049302]
[1734219216751,0.56293963,101440.0,101430.0,0.049302]
[1734219217156,0.62412196,101440.0,101430.0,0.049302]
[1734219220364,0.74204281,101440.0,101430.0,0.049302]
[1734219222861,0.80322514,101440.0,101430.0,0.049302]
[1734219225368,0.74204281,101440.0,101430.0,0.049302]
[1734219228275,0.65360218,101440.0,101430.0,0.049302]
[1734219230566,0.71478451,101440.0,101430.0,0.049302]
[1734219231181,0.86218557,101440.0,101430.0,0.28395698]
[1734219231473,0.71478451,101440.0,101430.0,0.28395698]
[1734219232265,0.86218557,101440.0,101430.0,0.23465498]
[1734219232465,0.049302,101430.0,101420.0,0.57720529]
[1734219232670,0.62180949,101430.0,101420.0,0.28396098]
[1734219232872,0.76921055,101430.0,101420.0,0.28396098]
[1734219233066,0.76921055,101430.0,101420.0,0.049806]
[1734219233263,0.83039288,101430.0,101420.0,0.049806]
[1734219233470,0.71226772,101430.0,101420.0,0.049806]
[1734219233779,0.71226772,101430.0,101420.0,0.0005]
[1734219234167,0.049307,101420.0,101410.0,0.57720829]
[1734219234472,0.77074821,101420.0,101410.0,0.83983465]
[1734219236174,0.77074821,101420.0,101410.0,0.60567967]
[1734219236877,0.80354821,101420.0,101410.0,0.60567967]
[1734219237075,0.80354821,101420.0,101410.0,0.60517967]
[1734219237274,0.80354821,101420.0,101410.0,0.84031426]
[1734219237875,0.71492969,101420.0,101410.0,0.28444359]
[1734219238173,0.71492969,101420.0,101410.0,0.28494359]
[1734219238174,0.80355375,101420.0,101410.0,0.28494359]
[1734219239075,0.80355375,101420.0,101410.0,0.28444359]
[1734219240171,0.80355375,101420.0,101410.0,0.28494359]
[1734219240769,0.74237142,101420.0,101410.0,0.28494359]
[1734219241077,0.69306442,101420.0,101410.0,0.84009784]
[1734219241274,0.62421339,101420.0,101410.0,0.84009784]
[1734219241476,0.74237142,101420.0,101410.0,0.84009784]
[1734219241774,0.74237142,101420.0,101410.0,0.84005897]
[1734219242177,0.74237142,101420.0,101410.0,0.84055897]
[1734219242377,0.62421339,101420.0,101410.0,0.84055897]
[1734219243173,0.62421339,101420.0,101410.0,0.84005897]
[1734219244075,0.62421339,101420.0,101410.0,0.84055897]
[1734219244274,0.59141339,101420.0,101410.0,0.5781879]
[1734219244677,0.59141339,101420.0,101410.0,0.84014603]
[1734219244981,0.59141339,101420.0,101410.0,0.5781879]
[1734219247085,0.70957142,101420.0,101410.0,0.28494359]
[1734219255086,0.70957142,101420.0,101410.0,0.28444359]
[1734219257287,0.70957142,101420.0,101410.0,0.5776879]
[1734219257590,0.34877142,101420.0,101410.0,0.5776879]
[1734219257789,0.70957142,101420.0,101410.0,0.5776879]
[1734219258292,0.70957142,101420.0,101410.0,0.83874897]
[1734219259991,0.62094736,101420.0,101410.0,0.83874897]
[1734219260190,0.62094736,101420.0,101410.0,0.60361438]
[1734219262391,0.76834842,101420.0,101410.0,0.60361438]
[1734219264287,0.76834842,101420.0,101410.0,0.95550756]
[1734219264989,0.76834842,101420.0,101410.0,0.60361438]
[1734219265187,0.76834842,101420.0,101410.0,0.95584919]
[1734219265384,0.70716609,101420.0,101410.0,0.95584919]
[1734219267588,0.70716609,101420.0,101410.0,0.95574141]
[1734219271792,0.70716609,101420.0,101410.0,0.69444649]
[1734219271991,0.70716609,101420.0,101410.0,0.95427091]
[1734219273586,0.70716609,101420.0,101410.0,1.01545324]
[1734219273587,0.26555909,101420.0,101410.0,1.01545324]
[1734219273791,0.20690631,101420.0,101410.0,1.39240822]
[1734219273993,0.08874828,101420.0,101410.0,1.04051504]
[1734219274496,0.08874828,101420.0,101410.0,1.39346428]
[1734219275390,0.08874828,101420.0,101410.0,1.03266428]
[1734219275695,0.08874828,101420.0,101410.0,1.39346428]
[1734219276207,0.08874828,101420.0,101410.0,1.39317135]
[1734219276986,0.14993061,101420.0,101410.0,0.97118902]
[1734219277188,0.67819564,101420.0,101410.0,0.95589645]
[1734219277395,0.70839564,101420.0,101410.0,0.95589645]
[1734219277595,0.70839564,101420.0,101410.0,0.60294721]
[1734219278400,0.70839564,101420.0,101410.0,0.78894351]
[1734219278401,0.74139564,101420.0,101410.0,0.78894351]
[1734219278589,0.80004842,101420.0,101410.0,0.78894351]
[1734219279293,0.80004842,101420.0,101410.0,0.57870226]
[1734219279599,0.80004842,101420.0,101410.0,0.83812186]
[1734219280302,0.80004842,101420.0,101410.0,1.09755226]
[1734219280502,0.80004842,101420.0,101410.0,0.57870226]
[1734219280710,0.80004842,101420.0,101410.0,0.83813046]
[1734219281094,0.80004842,101420.0,101410.0,0.2846173]
[1734219282102,0.86123075,101420.0,101410.0,0.2846173]
[1734219286808,0.86123075,101420.0,101410.0,0.2353053]
[1734219287002,0.74307272,101420.0,101410.0,0.2353053]
[1734219288401,0.74307272,101420.0,101410.0,0.41178965]
[1734219289408,0.86128887,101420.0,101410.0,0.41178965]
[1734219289797,0.74307272,101420.0,101410.0,0.41178965]
[1734219289999,0.75309315,101420.0,101410.0,0.41178965]
[1734219290392,0.87130605,101420.0,101410.0,0.41178965]
[1734219290806,0.75309315,101420.0,101410.0,0.41178965]
[1734219291899,0.39229315,101420.0,101410.0,0.41178965]
[1734219292201,1.11389315,101420.0,101410.0,0.41178965]
[1734219304004,1.11389315,101420.0,101410.0,0.17648435]
[1734219305209,1.29077442,101420.0,101410.0,0.17648435]
[1734219305409,1.14337336,101420.0,101410.0,0.17648435]
[1734219305616,1.16880463,101420.0,101410.0,0.17648435]
[1734219305820,1.0210087,101420.0,101410.0,0.17648435]
[1734219306002,1.14337336,101420.0,101410.0,0.17648435]
[1734219308905,1.0210087,101420.0,101410.0,0.17648435]
[1734219309305,1.14337336,101420.0,101410.0,0.17648435]
[1734219311810,1.11037336,101420.0,101410.0,0.17648435]
[1734219314619,0.38877336,101420.0,101410.0,0.17648435]
[1734219314816,1.11037336,101420.0,101410.0,0.17648435]
[1734219318417,1.11037336,101420.0,101410.0,0.41178965]
[1734219318820,1.14247336,101420.0,101410.0,0.17648435]
[1734219319013,0.96559209,101420.0,101400.0,0.47518965]
[1734219319219,0.79657782,101410.0,101400.0,0.47468965]
[1734219320317,0.79657782,101410.0,101400.0,0.47518965]
[1734219321117,0.79657782,101410.0,101400.0,0.47468965]
[1734219322115,0.79657782,101410.0,101400.0,0.47518965]
[1734219323226,0.79657782,101410.0,101400.0,0.47468965]
[1734219324225,0.79657782,101410.0,101400.0,0.47518965]
[1734219325219,0.79657782,101410.0,101400.0,0.47468965]
[1734219326133,0.79657782,101410.0,101400.0,0.47518965]
[1734219327127,0.61915046,101410.0,101400.0,0.47468965]
[1734219327328,0.79657782,101410.0,101400.0,0.47468965]
[1734219327528,0.61915046,101410.0,101400.0,0.47468965]
[1734219328329,0.61915046,101410.0,101400.0,0.52450665]
[1734219329929,0.55796813,101410.0,101400.0,0.52450665]
[1734219330127,0.61915046,101410.0,101400.0,0.52450665]
[1734219330927,0.61915046,101410.0,101400.0,0.3480223]
[1734219332228,0.61915046,101410.0,101400.0,0.3475223]
[1734219333124,0.55796813,101410.0,101400.0,0.3475223]
[1734219333432,0.61915046,101410.0,101400.0,0.3475223]
[1734219342644,0.79657782,101410.0,101400.0,0.3475223]
[1734219343545,0.79657782,101410.0,101400.0,0.64160726]
[1734219343739,0.73539549,101410.0,101400.0,0.64160726]
[1734219344247,0.79657782,101410.0,101400.0,0.64160726]
[1734219345452,0.79657782,101410.0,101400.0,0.89971477]
[1734219346351,0.68608349,101410.0,101400.0,1.02207943]
[1734219346548,0.20704977,101410.0,101400.0,1.80825849]
[1734219346743,0.0887349,101410.0,101400.0,1.51391984]
[1734219346947,0.0887349,101410.0,101400.0,1.81391984]
[1734219347141,0.11831487,101420.0,101410.0,0.049312]
[1734219347142,0.20704977,101420.0,101410.0,0.049312]
[1734219347347,0.20754977,101420.0,101410.0,1.04645611]
[1734219347549,0.0892349,101420.0,101410.0,1.04645611]
[1734219348357,0.0887349,101420.0,101410.0,1.04645611]
[1734219348557,0.0887349,101420.0,101410.0,0.69336532]
[1734219349458,0.0005,101420.0,101410.0,1.40725611]
[1734219350757,0.0005,101420.0,101410.0,1.11278848]
[1734219351546,0.0005,101420.0,101410.0,1.40634045]
[1734219353560,0.0005,101420.0,101410.0,1.05324966]
[1734219355555,0.0005,101420.0,101410.0,1.28794736]
[1734219356551,0.0005,101420.0,101410.0,1.29769297]
[1734219359251,0.0005,101420.0,101410.0,1.03988961]
[1734219359462,0.0005,101420.0,101410.0,1.29733453]
[1734219360459,0.06168233,101420.0,101410.0,1.2361522]
[1734219360658,0.06168233,101420.0,101410.0,0.29375531]
[1734219360969,0.09338233,101420.0,101410.0,0.46975304]
[1734219361463,0.09288233,101420.0,101410.0,0.53093537]
[1734219361666,0.0317,101420.0,101410.0,0.53093537]
[1734219362365,0.50298933,101420.0,101410.0,0.46000743]
[1734219362668,0.59172423,101420.0,101410.0,0.22530973]
[1734219362864,0.5305419,101420.0,101410.0,0.28649206]
[1734219363364,0.59172423,101420.0,101410.0,0.28649206]
[1734219363566,0.62482423,101420.0,101410.0,0.22530973]
[1734219364869,0.57551723,101420.0,101410.0,0.22530973]
[1734219365063,0.5143349,101420.0,101410.0,0.28649206]
[1734219365262,0.4256,101420.0,101410.0,0.28649206]
[1734219365457,0.3925,101420.0,101410.0,0.28649206]
[1734219365858,0.1204349,101420.0,101410.0,0.88198976]
[1734219366169,0.20704977,101430.0,101420.0,0.049307]
[1734219366372,0.20754977,101430.0,101420.0,0.28656272]
[1734219367072,0.0005,101430.0,101420.0,0.88206042]
[1734219367264,0.68254877,101440.0,101430.0,0.049302]
[1734219367569,0.7437311,101440.0,101430.0,0.049302]
[1734219369166,0.7437311,101440.0,101430.0,0.22537539]
[1734219371577,0.6549962,101440.0,101430.0,0.22537539]
[1734219371871,0.71617853,101440.0,101430.0,0.22537539]